fUST/lending_fUST_20250529
["ID","MTS","AMOUNT","RATE_DAILY","PERIOD"]
[362873088,1748502658246,-448.1433307,0.00023176,8]
[362873089,1748502658255,-961.0,0.00023245,2]
[362873090,1748502658265,-2228.0,0.00023245,2]
[362873091,1748502658274,-716.744,0.00023245,2]
[362873092,1748502658284,-405.0,0.00023245,2]
[362873093,1748502658294,-512.89,0.00023287,2]
[362873094,1748502658303,-430.0,0.00023287,2]
[362873095,1748502658313,-430.0,0.00023287,2]
[362873096,1748502658323,-734.54,0.00023287,2]
[362873097,1748502658333,-430.0,0.00023287,2]
[362873098,1748502658343,-1868.89,0.00023287,2]
[362873099,1748502658353,-227.39798,0.00023287,7]
[362873100,1748502658362,-1175.42,0.00023287,2]
[362873101,1748502658372,-1527.84,0.00023287,2]
[362873102,1748502658382,-633.39,0.00023287,2]
[362873103,1748502658392,-693.43,0.00023287,2]
[362873104,1748502658402,-430.0,0.00023287,2]
[362873105,1748502658413,-620.73,0.00023287,2]
[362873106,1748502658423,-151.0,0.00023287,7]
[362873107,1748502658433,-430.0,0.00023287,2]
[362873108,1748502658444,-525.79,0.00023287,2]
[362873109,1748502658455,-151.0,0.00023287,7]
[362873110,1748502658465,-430.0,0.00023287,2]
[362873111,1748502658475,-769.09,0.00023287,2]
[362873112,1748502658484,-151.0,0.00023287,7]
[362873113,1748502658493,-430.0,0.00023287,2]
[362873114,1748502658505,-602.51,0.00023287,2]
[362873115,1748502658515,-1859.43,0.00023287,2]
[362873116,1748502658524,-151.0,0.00023287,7]
[362873117,1748502658534,-767.83,0.00023287,2]
[362873118,1748502658544,-1338.57,0.00023287,2]
[362873119,1748502658554,-185.939333,0.00023287,7]
[362873120,1748502658564,-1861.14,0.00023287,2]
[362873121,1748502658574,-599.54,0.00023287,2]
[362873122,1748502658584,-430.0,0.00023287,2]
[362873123,1748502658665,-622.98,0.00023287,2]
[362873124,1748502658674,-430.0,0.00023287,2]
[362873125,1748502658684,-458.19,0.00023287,2]
[362873126,1748502658696,-386.8658236,0.00023287,2]
[362873127,1748502658707,-3240.33,0.00023287,2]
[362873128,1748502658716,-820.22,0.00023287,2]
[362873129,1748502658726,-3037.75,0.00023287,2]
[362873130,1748502658735,-1180.6,0.00023325,15]
[362873131,1748502658745,-151.0,0.00023335,7]
[362873132,1748502658754,-448.1433307,0.00023348,9]
[362873133,1748502658763,-700.0,0.00023356,2]
[362873134,1748502658773,-356.2936814,0.0002337,2]
[362873135,1748502658782,-678.7986217,0.0002337,2]
[362873136,1748502658792,-3093.58002825,0.00023472,2]
[362873137,1748502658801,-3500.0,0.00023486,3]
[362873138,1748502658809,-232.601867,0.00023486,7]
[362873139,1748502658819,-265.500993,0.00023486,7]
[362873140,1748502658828,-1309.840553,0.00023486,2]
[362873141,1748502658838,-1309.840553,0.00023486,2]
[362873142,1748502658847,-151.0,0.00023486,7]
[362873143,1748502658857,-9764.33627212,0.000235,4]
[362873144,1748502658866,-151.0,0.000235,7]
[362873145,1748502658876,-160.0,0.000235,3]
[362873146,1748502658885,-423.31762986,0.000235,3]
[362873147,1748502658895,-16027.67,0.000235,2]
[362873148,1748502658904,-151.0,0.00023516,7]
[362873149,1748502658914,-448.1433307,0.00023521,9]
[362873150,1748502658924,-151.0,0.00023561,7]
[362873151,1748502658934,-512.89,0.00023561,2]
[362873152,1748502658943,-411.19,0.00023561,2]
[362873153,1748502658953,-430.0,0.00023561,2]
[362873154,1748502658963,-734.54,0.00023561,2]
[362873155,1748502658972,-430.0,0.00023561,2]
[362873156,1748502658982,-1868.89,0.00023561,2]
[362873157,1748502658991,-1175.42,0.00023561,2]
[362873158,1748502659001,-1527.84,0.00023561,2]
[362873159,1748502659011,-633.39,0.00023561,2]
[362873160,1748502659020,-693.43,0.00023561,2]
[362873161,1748502659030,-430.0,0.00023561,2]
[362873162,1748502659040,-620.73,0.00023561,2]
[362873163,1748502659049,-430.0,0.00023561,2]
[362873164,1748502659059,-525.79,0.00023561,2]
[362873165,1748502659068,-430.0,0.00023561,2]
[362873166,1748502659077,-769.09,0.00023561,2]
[362873167,1748502659087,-212.78893972,0.00023561,2]
[362873168,1748502659096,-602.51,0.00023561,2]
[362873169,1748502659106,-1859.43,0.00023561,2]
[362873170,1748502659115,-767.83,0.00023561,2]
[362873171,1748502659125,-805.10472483,0.00023561,2]
[362873172,1748502659139,-533.46527517,0.00023561,2]
[362873173,1748502659150,-241.44224211,0.00023561,2]
[362873185,1748502965919,153.0,0.00022,30]
[362873186,1748503382493,3128.0,0.00022,30]
[362873188,1748503441683,165.959121,0.00013699,2]
[362873189,1748503491966,704.45850907,0.00016,2]
[362873197,1748503691558,411.6617813,0.00010618,2]
[362873198,1748503693516,2147.52834874,0.000125,2]
[362873199,1748503693541,9010.44128571,0.000125,2]
[362873200,1748503693564,128.95664017,0.000125,2]
[362873201,1748503703983,1714.09599625,0.00013,2]
[362873202,1748503716080,1000.0,0.0001,2]
[362873204,1748503800258,2565.69,0.00022,30]
[362873235,1748503832470,-160.0,0.00017994,2]
[362873236,1748503832480,-2563.3991735,0.00018,2]
[362873237,1748503832492,-157.47923829,0.00018,2]
[362873238,1748503832503,-1839.39576171,0.00018134,2]
[362873239,1748503832515,-274.69726469,0.00018134,2]
[362873240,1748503832525,-300.0,0.00018175,2]
[362873241,1748503832535,-454.98330531,0.00018175,2]
[362873242,1748503832547,-745.01669469,0.00018175,2]
[362873243,1748503832557,-300.0,0.00018176,2]
[362873244,1748503832567,-300.0,0.00018176,2]
[362873245,1748503832577,-10000.0,0.00018177,2]
[362873246,1748503832587,-162.95,0.00019068,2]
[362873247,1748503832596,-1277.6219885,0.000191,3]
[362873248,1748503832606,-12417.50847316,0.000191,2]
[362873249,1748503832616,-2755.09,0.00019168,3]
[362873250,1748503832625,-1377.55,0.00019168,3]
[362873251,1748503832635,-688.77,0.00019168,3]
[362873252,1748503832645,-344.39,0.00019168,3]
[362873253,1748503832655,-172.19,0.00019168,3]
[362873254,1748503832664,-516.62,0.00019168,3]
[362873255,1748503832674,-223.15787332,0.0001917,2]
[362873256,1748503832683,-500.0,0.0001917,2]
[362873257,1748503832694,-300.0,0.0001917,2]
[362873258,1748503832704,-500.0,0.0001917,2]
[362873259,1748503832713,-498.13799403,0.0001917,2]
[362873260,1748503832723,-500.0,0.0001917,2]
[362873261,1748503832733,-500.0,0.0001917,2]
[362873262,1748503832743,-244.12602482,0.0001917,2]
[362873263,1748503832752,-49804.70023667,0.0001917,2]
[362873279,1748503838260,-30425.98656113,0.0001917,2]
[362873287,1748503838327,-43708.08817799,0.0001917,2]
[362873294,1748503838400,-55162.39791321,0.0001917,2]
[362873295,1748503838410,-428.19427692,0.00019173,2]
[362873296,1748503838419,-501.05888498,0.00019173,2]
[362873297,1748503838429,-503.64016206,0.00019173,2]
[362873299,1748503838439,-500.0,0.00019173,2]
[362873301,1748503838449,-500.0,0.00019173,2]
[362873303,1748503838458,-500.0,0.00019173,2]
[362873305,1748503838468,-500.0,0.00019173,2]
[362873307,1748503838478,-505.17543987,0.00019173,2]
[362873309,1748503838488,-500.0,0.00019173,2]
[362873311,1748503838499,-500.0,0.00019173,2]
[362873312,1748503838511,-500.0,0.00019173,2]
[362873313,1748503838521,-503.39334109,0.00019173,2]
[362873314,1748503838531,-500.0,0.00019173,2]
[362873315,1748503838540,-162.42882226,0.00019173,2]
[362873316,1748503838551,-500.0,0.00019173,2]
[362873317,1748503838560,-500.0,0.00019173,2]
[362873318,1748503838570,-500.0,0.00019173,2]
[362873320,1748503838579,-500.0,0.00019173,2]
[362873321,1748503838589,-500.0,0.00019173,2]
[362873322,1748503838599,-478.55774505,0.00019173,2]
[362873323,1748503838608,-500.84810147,0.00019173,2]
[362873324,1748503838618,-500.0,0.00019173,2]
[362873325,1748503838628,-500.0,0.00019173,2]
[362873326,1748503838637,-503.76398954,0.00019173,2]
[362873327,1748503838647,-502.8240996,0.00019173,2]
[362873328,1748503838656,-501.07931688,0.00019173,2]
[362873329,1748503838669,-500.0,0.00019173,2]
[362873330,1748503838678,-500.0,0.00019173,2]
[362873331,1748503838688,-500.0,0.00019173,2]
[362873332,1748503838697,-500.68641638,0.00019173,2]
[362873333,1748503838707,-645.84577878,0.00019173,2]
[362873334,1748503838716,-500.0,0.00019177,2]
[362873335,1748503838725,-500.0,0.00019177,2]
[362873336,1748503838735,-500.0,0.00019177,2]
[362873337,1748503838744,-500.0,0.00019177,2]
[362873338,1748503838754,-415.18104244,0.00019177,2]
[362873339,1748503838763,-618.11046843,0.00019177,2]
[362873340,1748503838772,-500.0,0.00019177,2]
[362873341,1748503838781,-538.31323393,0.00019177,2]
[362873342,1748503838790,-500.0,0.00019177,2]
[362873343,1748503838803,-404.81318171,0.00019178,2]
[362873344,1748503838812,-430.0,0.00019178,2]
[362873345,1748503838821,-1000.0,0.00019178,2]
[362873346,1748503838831,-400.0,0.00019178,2]
[362873347,1748503838843,-200.0,0.00019178,2]
[362873348,1748503838854,-400.0,0.00019178,2]
[362873349,1748503838865,-430.0,0.00019178,2]
[362873350,1748503838876,-405.41528267,0.00019178,2]
[362873351,1748503838885,-400.0,0.00019178,2]
[362873352,1748503838895,-400.0,0.00019178,2]
[362873353,1748503838903,-400.0,0.00019178,2]
[362873354,1748503838913,-430.0,0.00019178,2]
[362873355,1748503838923,-410.27182533,0.00019178,2]
[362873356,1748503838932,-400.0,0.00019178,2]
[362873357,1748503838942,-436.36582167,0.00019178,2]
[362873358,1748503838952,-344.56810667,0.00019178,2]
[362873359,1748503838962,-420.86701249,0.00019178,2]
[362873360,1748503838971,-400.0,0.00019178,2]
[362873361,1748503838981,-400.0,0.00019178,2]
[362873362,1748503838990,-430.0,0.00019178,2]
[362873363,1748503839000,-403.25576245,0.00019178,2]
[362873364,1748503839009,-430.0,0.00019178,2]
[362873365,1748503839018,-400.0,0.00019178,2]
[362873366,1748503839028,-430.0,0.00019178,2]
[362873367,1748503839037,-400.0,0.00019178,2]
[362873368,1748503839048,-400.0,0.00019178,2]
[362873369,1748503839058,-401.55568582,0.00019178,2]
[362873370,1748503839067,-430.0,0.00019178,2]
[362873371,1748503839077,-400.0,0.00019178,2]
[362873372,1748503839087,-430.0,0.00019178,2]
[362873373,1748503839101,-400.0,0.00019178,2]
[362873374,1748503839111,-402.10128529,0.00019178,2]
[362873375,1748503839120,-430.0,0.00019178,2]
[362873376,1748503839131,-400.0,0.00019178,2]
[362873377,1748503839141,-430.0,0.00019178,2]
[362873378,1748503839151,-480.92,0.00019178,2]
[362873379,1748503839160,-422.23787399,0.00019178,2]
[362873380,1748503839171,-400.0,0.00019178,2]
[362873381,1748503839181,-415.56885754,0.00019178,2]
[362873382,1748503839191,-430.0,0.00019178,2]
[362873383,1748503839200,-400.0,0.00019178,2]
[362873384,1748503839210,-531.53659925,0.00019178,2]
[362873385,1748503839219,-400.0,0.00019178,2]
[362873386,1748503839229,-400.0,0.00019178,2]
[362873387,1748503839239,-400.0,0.00019178,2]
[362873388,1748503839248,-430.0,0.00019178,2]
[362873389,1748503839258,-442.16787166,0.00019178,2]
[362873390,1748503839267,-430.0,0.00019178,2]
[362873391,1748503839405,-400.0,0.00019178,2]
[362873392,1748503839414,-435.97998444,0.00019178,2]
[362873393,1748503839424,-430.62651728,0.00019178,2]
[362873394,1748503839434,-462.07872988,0.00019178,2]
[362873395,1748503839443,-430.0,0.00019178,2]
[362873396,1748503839453,-430.0,0.00019178,2]
[362873397,1748503839463,-430.0,0.00019178,2]
[362873398,1748503839474,-443.60279296,0.00019178,2]
[362873399,1748503839484,-443.1066143,0.00019178,2]
[362873400,1748503839494,-454.74852935,0.00019178,2]
[362873401,1748503839504,-430.0,0.00019178,2]
[362873402,1748503839514,-433.8769465,0.00019178,2]
[362873403,1748503839524,-430.0,0.00019178,2]
[362873404,1748503839534,-433.17172055,0.00019178,2]
[362873405,1748503839543,-409.80169712,0.00019178,2]
[362873406,1748503839553,-430.0,0.00019178,2]
[362873407,1748503839563,-430.0,0.00019178,2]
[362873408,1748503839572,-430.0,0.00019178,2]
[362873409,1748503839582,-430.0,0.00019178,2]
[362873410,1748503839592,-444.66792769,0.00019178,2]
[362873411,1748503839601,-375.50600176,0.00019178,2]
[362873412,1748503839611,-437.00274578,0.00019178,2]
[362873413,1748503839621,-437.78238566,0.00019178,2]
[362873414,1748503839631,-467.632255,0.00019178,2]
[362873415,1748503839641,-430.0,0.00019178,2]
[362873416,1748503839650,-430.0,0.00019178,2]
[362873417,1748503839660,-427.89174655,0.00019178,2]
[362873418,1748503839670,-435.60729039,0.00019178,2]
[362873419,1748503839680,-405.18689007,0.00019178,2]
[362873420,1748503839689,-430.0,0.00019178,2]
[362873421,1748503839699,-496.17228419,0.00019178,2]
[362873422,1748503839708,-400.0,0.00019178,2]
[362873423,1748503839718,-398.81590457,0.00019178,2]
[362873424,1748503839728,-430.0,0.00019178,2]
[362873425,1748503839738,-436.51738418,0.00019178,2]
[362873426,1748503839748,-430.0,0.00019178,2]
[362873427,1748503839758,-451.96350316,0.00019178,2]
[362873428,1748503839768,-430.0,0.00019178,2]
[362873429,1748503839777,-430.0,0.00019178,2]
[362873430,1748503839787,-430.0,0.00019178,2]
[362873431,1748503839798,-430.0,0.00019178,2]
[362873432,1748503839808,-434.78601092,0.00019178,2]
[362873433,1748503839818,-437.44444621,0.00019178,2]
[362873434,1748503839829,-430.0,0.00019178,2]
[362873435,1748503839841,-430.0,0.00019178,2]
[362873436,1748503839852,-430.0,0.00019178,2]
[362873437,1748503839861,-430.0,0.00019178,2]
[362873438,1748503839871,-436.73781771,0.00019178,2]
[362873439,1748503839881,-439.08250887,0.00019178,2]
[362873440,1748503839891,-278.84975378,0.00019178,2]
[362873441,1748503839900,-439.10259243,0.00019178,2]
[362873442,1748503839910,-540.72978913,0.00019178,2]
[362873443,1748503839919,-536.09701348,0.00019178,2]
[362873444,1748503839929,-440.32803403,0.00019178,2]
[362873445,1748503839938,-430.0,0.00019178,2]
[362873446,1748503839947,-446.25090367,0.00019178,2]
[362873447,1748503839958,-440.19622858,0.00019178,2]
[362873448,1748503839968,-430.0,0.00019178,2]
[362873449,1748503839979,-439.64517547,0.00019178,2]
[362873450,1748503839991,-356.7367605,0.00019178,2]
[362873451,1748503840001,-439.67829286,0.00019178,2]
[362873452,1748503840012,-430.0,0.00019178,2]
[362873453,1748503840021,-439.32722756,0.00019178,2]
[362873454,1748503840032,-430.0,0.00019178,2]
[362873455,1748503840041,-438.95746794,0.00019178,2]
[362873456,1748503840051,-436.5171141,0.00019178,2]
[362873457,1748503840060,-474.86360552,0.00019178,2]
[362873458,1748503840069,-436.79731227,0.00019178,2]
[362873459,1748503840078,-430.0,0.00019178,2]
[362873460,1748503840088,-433.83494658,0.00019178,2]
[362873461,1748503840097,-430.0,0.00019178,2]
[362873462,1748503840106,-454.45763877,0.00019178,2]
[362873463,1748503840115,-430.0,0.00019178,2]
[362873464,1748503840124,-506.73,0.00019178,2]
[362873465,1748503840133,-430.0,0.00019178,2]
[362873466,1748503840143,-430.0,0.00019178,2]
[362873467,1748503840152,-430.0,0.00019178,2]
[362873468,1748503840161,-430.0,0.00019178,2]
[362873469,1748503840170,-403.01710625,0.00019178,2]
[362873471,1748503840179,-430.0,0.00019178,2]
[362873472,1748503840189,-191.70276032,0.00019178,2]
[362873473,1748503840199,-430.0,0.00019178,2]
[362873474,1748503840208,-257.93548553,0.00019178,2]
[362873475,1748503840217,-430.0,0.00019178,2]
[362873476,1748503840226,-402.90442869,0.00019178,2]
[362873477,1748503840235,-430.0,0.00019178,2]
[362873478,1748503840245,-430.0,0.00019178,2]
[362873479,1748503840255,-423.56897869,0.00019178,2]
[362873480,1748503840264,-388.39792935,0.00019178,2]
[362873481,1748503840274,-563.36406235,0.00019178,2]
[362873482,1748503840283,-430.0,0.00019178,2]
[362873483,1748503840292,-430.0,0.00019178,2]
[362873484,1748503840302,-430.0,0.00019178,2]
[362873485,1748503840311,-430.0,0.00019178,2]
[362873486,1748503840320,-430.0,0.00019178,2]
[362873487,1748503840329,-456.41081921,0.00019178,2]
[362873488,1748503840339,-430.0,0.00019178,2]
[362873489,1748503840349,-430.0,0.00019178,2]
[362873490,1748503840358,-430.0,0.00019178,2]
[362873491,1748503840367,-430.0,0.00019178,2]
[362873492,1748503840377,-430.0,0.00019178,2]
[362873493,1748503840387,-436.55804124,0.00019178,2]
[362873494,1748503840396,-430.0,0.00019178,2]
[362873495,1748503840405,-430.0,0.00019178,2]
[362873496,1748503840415,-430.0,0.00019178,2]
[362873497,1748503840424,-430.0,0.00019178,2]
[362873498,1748503840433,-430.0,0.00019178,2]
[362873499,1748503840443,-430.0,0.00019178,2]
[362873500,1748503840453,-440.99112872,0.00019178,2]
[362873501,1748503840463,-430.0,0.00019178,2]
[362873502,1748503840473,-430.0,0.00019178,2]
[362873503,1748503840487,-430.0,0.00019178,2]
[362873504,1748503840500,-430.0,0.00019178,2]
[362873505,1748503840513,-430.0,0.00019178,2]
[362873506,1748503840526,-430.0,0.00019178,2]
[362873507,1748503840538,-430.0,0.00019178,2]
[362873508,1748503840549,-2077.85,0.00019178,2]
[362873509,1748503840562,-430.0,0.00019178,2]
[362873510,1748503840575,-430.0,0.00019178,2]
[362873511,1748503840588,-436.53858466,0.00019178,2]
[362873512,1748503840600,-430.0,0.00019178,2]
[362873513,1748503840613,-453.54962649,0.00019178,2]
[362873514,1748503840624,-430.0,0.00019178,2]
[362873515,1748503840637,-447.3428352,0.00019178,2]
[362873516,1748503840650,-430.0,0.00019178,2]
[362873517,1748503840662,-188.0,0.00019178,2]
[362873518,1748503840675,-432.33,0.00019178,2]
[362873519,1748503840687,-749.75,0.00019178,2]
[362873520,1748503840699,-263.56961348,0.00019178,2]
[362873521,1748503840711,-430.0,0.00019178,2]
[362873522,1748503840723,-430.0,0.00019178,2]
[362873523,1748503840735,-430.0,0.00019178,2]
[362873524,1748503840748,-430.0,0.00019178,2]
[362873525,1748503840760,-430.0,0.00019178,2]
[362873526,1748503840772,-1021.9,0.00019178,2]
[362873527,1748503840784,-430.0,0.00019178,2]
[362873528,1748503840795,-430.0,0.00019178,2]
[362873529,1748503840807,-430.0,0.00019178,2]
[362873530,1748503840819,-430.0,0.00019178,2]
[362873531,1748503840830,-430.0,0.00019178,2]
[362873532,1748503840843,-430.0,0.00019178,2]
[362873533,1748503840855,-430.0,0.00019178,2]
[362873534,1748503840868,-375.98725003,0.00019178,2]
[362873535,1748503840881,-430.0,0.00019178,2]
[362873536,1748503840893,-430.0,0.00019178,2]
[362873537,1748503840911,-430.0,0.00019178,2]
[362873538,1748503840936,-430.0,0.00019178,2]
[362873539,1748503840951,-430.0,0.00019178,2]
[362873540,1748503840967,-430.0,0.00019178,2]
[362873541,1748503840979,-430.0,0.00019178,2]
[362873542,1748503840990,-430.0,0.00019178,2]
[362873543,1748503841001,-538.06,0.00019178,2]
[362873544,1748503841013,-453.1165668,0.00019178,2]
[362873545,1748503841026,-430.0,0.00019178,2]
[362873546,1748503841041,-430.0,0.00019178,2]
[362873547,1748503841056,-174.88675193,0.00019178,2]
[362873548,1748503841067,-430.0,0.00019178,2]
[362873549,1748503841079,-382.17320793,0.00019178,2]
[362873550,1748503841091,-430.0,0.00019178,2]
[362873551,1748503841105,-498.28,0.00019178,2]
[362873552,1748503841120,-430.0,0.00019178,2]
[362873553,1748503841131,-403.1913227,0.00019178,2]
[362873554,1748503841142,-439.62741147,0.00019178,2]
[362873555,1748503841153,-407.95077037,0.00019178,2]
[362873556,1748503841166,-430.0,0.00019178,2]
[362873557,1748503841177,-430.0,0.00019178,2]
[362873558,1748503841190,-430.0,0.00019178,2]
[362873559,1748503841203,-430.0,0.00019178,2]
[362873560,1748503841215,-430.0,0.00019178,2]
[362873561,1748503841227,-400.0,0.00019178,2]
[362873562,1748503841239,-469.39189322,0.00019178,2]
[362873563,1748503841251,-430.0,0.00019178,2]
[362873564,1748503841263,-430.0,0.00019178,2]
[362873565,1748503841275,-430.0,0.00019178,2]
[362873566,1748503841286,-430.0,0.00019178,2]
[362873567,1748503841300,-430.0,0.00019178,2]
[362873568,1748503841311,-438.82674591,0.00019178,2]
[362873569,1748503841322,-200.0,0.00019178,2]
[362873570,1748503841332,-430.0,0.00019178,2]
[362873571,1748503841344,-1253.31,0.00019178,2]
[362873572,1748503841355,-430.0,0.00019178,2]
[362873573,1748503841366,-430.0,0.00019178,2]
[362873574,1748503841378,-430.0,0.00019178,2]
[362873575,1748503841389,-926.61,0.00019178,2]
[362873576,1748503841400,-430.0,0.00019178,2]
[362873577,1748503841412,-430.0,0.00019178,2]
[362873578,1748503841422,-430.0,0.00019178,2]
[362873579,1748503841433,-500.0,0.00019178,2]
[362873580,1748503841444,-400.97092094,0.00019178,2]
[362873581,1748503841455,-175.76,0.00019178,2]
[362873582,1748503841466,-430.0,0.00019178,2]
[362873583,1748503841478,-355.1773106,0.00019178,2]
[362873584,1748503841489,-430.0,0.00019178,2]
[362873585,1748503841500,-430.0,0.00019178,2]
[362873586,1748503841511,-430.0,0.00019178,2]
[362873587,1748503841522,-430.0,0.00019178,2]
[362873588,1748503841533,-414.84690033,0.00019178,2]
[362873589,1748503841545,-430.0,0.00019178,2]
[362873590,1748503841556,-432.39411504,0.00019178,2]
[362873591,1748503841568,-430.0,0.00019178,2]
[362873592,1748503841579,-414.10560202,0.00019178,2]
[362873593,1748503841591,-430.0,0.00019178,2]
[362873594,1748503841602,-430.0,0.00019178,2]
[362873595,1748503841614,-266.02928671,0.00019178,2]
[362873596,1748503841625,-414.44469776,0.00019178,2]
[362873597,1748503841636,-430.0,0.00019178,2]
[362873598,1748503841649,-430.0,0.00019178,2]
[362873599,1748503841660,-430.0,0.00019178,2]
[362873600,1748503841672,-430.0,0.00019178,2]
[362873601,1748503841684,-450.0,0.00019178,2]
[362873602,1748503841695,-460.39,0.00019178,2]
[362873603,1748503841707,-430.0,0.00019178,2]
[362873604,1748503841718,-402.41973853,0.00019178,2]
[362873605,1748503841729,-502.03696478,0.00019178,2]
[362873606,1748503841740,-432.36980136,0.00019178,2]
[362873607,1748503841752,-430.0,0.00019178,2]
[362873608,1748503841763,-430.0,0.00019178,2]
[362873609,1748503841775,-430.0,0.00019178,2]
[362873610,1748503841787,-451.15,0.00019178,2]
[362873611,1748503841934,-400.0,0.00019178,2]
[362873612,1748503841951,-367.1453051,0.00019178,2]
[362873613,1748503841963,-430.0,0.00019178,2]
[362873614,1748503841974,-430.0,0.00019178,2]
[362873615,1748503841983,-639.8,0.00019178,2]
[362873616,1748503841993,-430.0,0.00019178,2]
[362873617,1748503842003,-430.0,0.00019178,2]
[362873618,1748503842019,-430.0,0.00019178,2]
[362873619,1748503842030,-1290.58,0.00019178,2]
[362873620,1748503842040,-430.0,0.00019178,2]
[362873621,1748503842049,-430.0,0.00019178,2]
[362873622,1748503842059,-430.0,0.00019178,2]
[362873623,1748503842068,-436.67598338,0.00019178,2]
[362873624,1748503842077,-461.18935211,0.00019178,2]
[362873625,1748503842087,-430.0,0.00019178,2]
[362873626,1748503842096,-495.78727679,0.00019178,2]
[362873627,1748503842106,-430.0,0.00019178,2]
[362873628,1748503842116,-430.0,0.00019178,2]
[362873629,1748503842127,-599.69,0.00019178,2]
[362873630,1748503842138,-358.72994663,0.00019178,2]
[362873631,1748503842148,-436.16812078,0.00019178,2]
[362873632,1748503842157,-430.0,0.00019178,2]
[362873633,1748503842167,-430.0,0.00019178,2]
[362873634,1748503842176,-231.47001067,0.00019178,2]
[362873635,1748503842186,-719.53,0.00019178,2]
[362873636,1748503842197,-430.0,0.00019178,2]
[362873637,1748503842206,-503.42271926,0.00019178,2]
[362873638,1748503842216,-430.0,0.00019178,2]
[362873639,1748503842225,-431.7,0.00019178,2]
[362873640,1748503842235,-2305.04,0.00019178,2]
[362873641,1748503842244,-472.12814731,0.00019178,2]
[362873642,1748503842254,-1306.65,0.00019178,2]
[362873643,1748503842263,-430.0,0.00019178,2]
[362873644,1748503842273,-430.0,0.00019178,2]
[362873645,1748503842283,-430.0,0.00019178,2]
[362873646,1748503842293,-151.0,0.00019178,2]
[362873647,1748503842303,-500.0,0.00019178,2]
[362873648,1748503842313,-239.319492,0.00019178,2]
[362873649,1748503842322,-156.587,0.00019233,2]
[362873650,1748503842332,-162.380719,0.00019288,2]
[362873651,1748503842341,-168.3888056,0.00019343,2]
[362873652,1748503842352,-2923.1,0.00019343,2]
[362873653,1748503842362,-174.61919141,0.00019398,2]
[362873654,1748503842371,-362.28775627,0.00019452,2]
[362873655,1748503842381,-442.1269078,0.00019452,2]
[362873656,1748503842390,-406.96939055,0.00019452,2]
[362873657,1748503842400,-430.0,0.00019452,2]
[362873658,1748503842410,-443.04079944,0.00019452,2]
[362873659,1748503842420,-430.0,0.00019452,2]
[362873660,1748503842430,-539.88,0.00019452,2]
[362873661,1748503842440,-430.0,0.00019452,2]
[362873662,1748503842450,-430.0,0.00019452,2]
[362873663,1748503842459,-430.0,0.00019452,2]
[362873664,1748503842468,-574.28842608,0.00019452,2]
[362873665,1748503842478,-430.0,0.00019452,2]
[362873666,1748503842487,-430.0,0.00019452,2]
[362873667,1748503842497,-430.0,0.00019452,2]
[362873668,1748503842507,-430.0,0.00019452,2]
[362873669,1748503842517,-434.80726622,0.00019452,2]
[362873670,1748503842527,-430.0,0.00019452,2]
[362873671,1748503842537,-430.0,0.00019452,2]
[362873672,1748503842546,-506.73,0.00019452,2]
[362873673,1748503842556,-441.09292531,0.00019452,2]
[362873674,1748503842565,-430.0,0.00019452,2]